fUSD/lending_fUSD_20241224
["ID","MTS","AMOUNT","RATE_DAILY","PERIOD"]
[346524014,1735024232441,-1300.0,0.000133,4]
[346524015,1735024232451,-1600.0,0.000134,4]
[346524016,1735024232462,-300.0,0.00013425,2]
[346524017,1735024232471,-365.25,0.00013425,2]
[346524018,1735024232480,-403.14839435,0.00013425,2]
[346524030,1735024232843,-33.27160565,0.00013425,2]
[346524031,1735024232854,-977.57,0.00013425,2]
[346524032,1735024232865,-364.14,0.00013425,2]
[346524033,1735024232878,-21.52060656,0.00013425,2]
[346524034,1735024237863,-318.93789218,0.00013425,2]
[346524036,1735024238013,-24.79150126,0.00013425,2]
[346524037,1735024238024,-977.57,0.00013425,2]
[346524038,1735024238034,-436.42,0.00013425,2]
[346524039,1735024238045,-998.30939528,0.00013498,2]
[346524040,1735024238055,-300.0,0.000135,4]
[346524041,1735024238066,-3000.0,0.0001356,2]
[346524042,1735024238076,-347.27647061,0.00013598,2]
[346524043,1735024238086,-4532.91842686,0.000136,2]
[346524044,1735024238107,-562.73308836,0.000136,2]
[346524045,1735024238119,-1057.5811753,0.000136,2]
[346524046,1735024238138,-500.0,0.000136,2]
[346524047,1735024238155,-1846.76730948,0.000136,2]
[346524048,1735024238167,-10084.98509562,0.000136,2]
[346524069,1735024240063,-7507.37194817,0.000136,2]
[346524070,1735024240076,-1295.02311858,0.000136,2]
[346524071,1735024240192,-1111.5,0.000136,2]
[346524072,1735024240205,-705.11235823,0.000136,2]
[346524073,1735024240231,-24429.42093988,0.000136,2]
[346524074,1735024240245,-4106.49371718,0.000136,2]
[346524096,1735024243898,-14934.03308031,0.000136,2]
[346524102,1735024246141,-151.78730541,0.00013596,2]
[346524103,1735024246151,-202.56,0.000136,2]
[346524104,1735024246160,-12799.25269459,0.000136,2]
[346524105,1735024246232,-263.21584521,0.000136,2]
[346524108,1735024663371,200000.0,0.00026471,60]
[346524116,1735025284918,279.72,0.00010801,2]
[346524118,1735025312118,2611.01407247,0.0001,2]
[346524129,1735025412275,604086.32417436,0.00026478,60]
[346524146,1735025432822,-250.0,0.00012688,2]
[346524147,1735025432832,-1000.0,0.00012699,2]
[346524148,1735025432841,-276.16,0.00012768,2]
[346524149,1735025432850,-450.0,0.00013,2]
[346524150,1735025432859,-685.616,0.0001302,2]
[346524151,1735025432868,-279.72,0.00013065,2]
[346524152,1735025432877,-300.0,0.00013594,2]
[346524153,1735025432886,-202.72,0.00013595,2]
[346524154,1735025432895,-201.88,0.00013595,2]
[346524155,1735025432904,-200.52,0.00013595,2]
[346524156,1735025432914,-202.55,0.00013595,2]
[346524157,1735025432924,-203.91,0.00013595,2]
[346524158,1735025432933,-201.76,0.00013595,2]
[346524159,1735025432943,-202.7,0.00013595,2]
[346524160,1735025432952,-201.01,0.00013595,2]
[346524161,1735025432961,-202.15,0.00013595,2]
[346524162,1735025432970,-201.3,0.00013595,2]
[346524163,1735025432980,-201.45,0.00013595,2]
[346524164,1735025432989,-200.08,0.00013595,2]
[346524165,1735025432999,-200.61,0.00013595,2]
[346524166,1735025433008,-202.87,0.00013595,2]
[346524167,1735025433017,-201.16,0.00013595,2]
[346524168,1735025433027,-201.88,0.00013595,2]
[346524169,1735025433037,-165.15342726,0.00013596,2]
[346524170,1735025433046,-203.79,0.00013596,2]
[346524171,1735025433056,-201.23,0.00013596,2]
[346524172,1735025433066,-202.99,0.00013596,2]
[346524173,1735025433077,-200.13,0.00013596,2]
[346524174,1735025433087,-201.88,0.00013596,2]
[346524175,1735025433096,-202.95,0.00013596,2]
[346524176,1735025433106,-201.64,0.00013596,2]
[346524177,1735025433116,-201.3,0.00013596,2]
[346524178,1735025433126,-202.66,0.00013596,2]
[346524179,1735025433136,-202.53,0.00013596,2]
[346524180,1735025433145,-202.29,0.00013596,2]
[346524181,1735025433155,-201.83,0.00013596,2]
[346524182,1735025433165,-200.92,0.00013597,2]
[346524183,1735025433175,-202.09,0.00013598,2]
[346524184,1735025433184,-200.51,0.000136,2]
[346524185,1735025433194,-202.74,0.000136,2]
[346524186,1735025433203,-202.13,0.000136,2]
[346524187,1735025433214,-3253.7608506,0.000136,2]
[346524188,1735025433223,-3145.19307648,0.000136,2]
[346524189,1735025433232,-3000.0,0.000136,2]
[346524190,1735025433242,-170.74662603,0.00013673,2]
[346524191,1735025433251,-500.0,0.00013673,2]
[346524192,1735025433262,-160.07010099,0.00013673,2]
[346524193,1735025433272,-1644.592,0.00013673,2]
[346524194,1735025433281,-409896.36979406,0.00013673,2]
[346524196,1735025438064,-1447.6891,0.00013595,2]
[346524197,1735025438073,-72.3109,0.00013673,2]
[346524198,1735025438310,-308.20907982,0.00013673,2]
[346524199,1735025438322,-313.74999826,0.00013673,2]
[346524200,1735025438355,-500.0,0.00013673,2]
[346524201,1735025438366,-244802.26626976,0.00013673,2]
[346524205,1735025440190,-9784.51379836,0.00013673,2]
[346524206,1735025440202,-267508.65745319,0.00013673,2]
[346524207,1735025440211,-1781.0,0.00013696,2]
[346524208,1735025440220,-79700.16698919,0.00013696,2]
[346524209,1735025440231,-364.32348584,0.00013696,2]
[346524210,1735025440241,-324.56651413,0.00013696,2]
[346524211,1735025440253,-3567.28412794,0.00013696,2]
[346524212,1735025440268,-36108.14935893,0.00013696,2]
[346524213,1735025440277,-17899.30176717,0.00013696,2]
[346524214,1735025440412,-22100.69823183,0.00013696,2]
[346524215,1735025440644,-1000.0,0.00013697,2]
[346524216,1735025440655,-500.0,0.00013697,2]
[346524217,1735025440664,-55371.82021114,0.00013698,2]
[346524218,1735025440683,-395.88686451,0.00013698,2]
[346524220,1735025443248,-14372.74776098,0.00013698,2]
[346524222,1735025443259,-678.16517653,0.00013698,2]
[346524223,1735025443294,-1644.5419948,0.00013698,2]
[346524224,1735025443340,-19055.63271342,0.00013698,2]
[346524225,1735025443351,-3771.173325,0.00013698,2]
[346524226,1735025443384,-5285.45684657,0.00013698,2]
[346524227,1735025443425,-3841.08555647,0.00013698,2]
[346524228,1735025443432,-587449.13764971,0.00013698,2]
[346524229,1735025443463,-263.252,0.00013698,2]
[346524230,1735025443541,-17476.08560783,0.00013698,2]
[346524231,1735025443638,-1557.0,0.00013698,2]
[346524232,1735025443647,-1482.9,0.00013698,2]
[346524237,1735025446140,-203.53,0.00013673,2]
[346524238,1735025446149,-156.55234564,0.00013698,2]
[346524239,1735025446183,-602.80619902,0.00013698,2]
[346524240,1735025446321,-2494.82716225,0.00013698,2]
[346524241,1735025446367,-186071.14951505,0.00013698,2]
[346524242,1735025446405,-280.81103182,0.00013698,2]
[346524243,1735025446443,-3120.0000015,0.00013698,2]
[346524244,1735025446455,-271.56303816,0.00013698,2]
[346524245,1735025446574,-15199.26691064,0.00013698,2]
[346524246,1735025446586,-13696.2959732,0.00013698,2]
[346524247,1735025446597,-9364.1344879,0.00013698,2]
[346524248,1735025446612,-5871.95341683,0.00013698,2]
[346524263,1735025689061,152.404721,0.000188,60]
[346524264,1735026010698,180.09,0.00010137,2]
[346524265,1735026120892,170.43,0.00016658,30]
[346524266,1735026257607,376.57,0.00010493,2]
[346524268,1735026632581,-166.66666667,0.00012204,2]
[346524269,1735026632593,-3392.75,0.0001221,2]
[346524270,1735026632603,-896.31,0.00012215,2]
[346524271,1735026632615,-364.63,0.00012252,2]
[346524272,1735026632626,-150.0,0.00012304,2]
[346524273,1735026632636,-150.0,0.00012304,2]
[346524274,1735026632647,-150.0,0.00012304,2]
[346524275,1735026632658,-150.00000001,0.00012304,2]
[346524276,1735026632668,-150.18295905,0.00012304,2]
[346524277,1735026632680,-150.0,0.00012304,2]
[346524278,1735026632690,-150.0,0.00012304,2]
[346524279,1735026632700,-150.0,0.00012304,2]
[346524280,1735026632712,-150.0,0.00012304,2]
[346524281,1735026632722,-181.16092209,0.00012336,2]
[346524282,1735026632733,-250.0,0.00012433,2]
[346524283,1735026632744,-1179.22,0.00012436,2]
[346524284,1735026632754,-150.0,0.00012441,2]
[346524285,1735026632764,-1500.0,0.0001252,2]
[346524286,1735026632774,-150.0,0.00012532,2]
[346524287,1735026632785,-150.0,0.00012532,2]
[346524288,1735026632795,-599.07945218,0.00012538,2]
[346524289,1735026632808,-400.00054782,0.00012538,2]
[346524290,1735026632819,-150.0,0.00012548,2]
[346524291,1735026632829,-250.0,0.00012551,2]
[346524292,1735026632840,-1000.0,0.00012553,2]
[346524293,1735026632851,-150.0,0.00012567,2]
[346524294,1735026632861,-164.02,0.00012575,2]
[346524295,1735026632871,-150.0,0.00012578,2]
[346524296,1735026632882,-250.0,0.00012597,2]
[346524297,1735026632893,-1030.96,0.00012615,2]
[346524298,1735026632903,-150.0,0.00012714,2]
[346524299,1735026632913,-376.57,0.00012757,2]
[346524300,1735026632928,-150.0,0.0001276,2]
[346524301,1735026632940,-150.0,0.0001276,2]
[346524302,1735026632950,-206.13,0.00012809,2]
[346524303,1735026632960,-150.0,0.00012851,2]
[346524304,1735026632971,-977.57,0.00012878,2]
[346524305,1735026632981,-977.57,0.00012878,2]
[346524306,1735026632992,-977.57,0.00012878,2]
[346524307,1735026633002,-977.57,0.00012878,2]
[346524308,1735026633013,-365.25,0.000129,2]
[346524309,1735026633024,-977.57,0.000129,2]
[346524310,1735026633035,-977.57,0.00012978,2]
[346524311,1735026633047,-150.0,0.00012988,2]
[346524312,1735026633057,-150.0,0.00012988,2]
[346524313,1735026633068,-150.0,0.00012988,2]
[346524314,1735026633079,-150.0,0.00012988,2]
[346524315,1735026633090,-429.24945218,0.00013,2]
[346524316,1735026633105,-1661.47568001,0.00013,2]
[346524320,1735026638393,-17909.27486781,0.00013,2]
[346524321,1735026638402,-657.001,0.0001302,2]
[346524322,1735026638412,-181.16092209,0.00013078,2]
[346524323,1735026638421,-977.57,0.00013078,2]
[346524324,1735026638431,-365.25,0.000131,2]
[346524325,1735026638440,-977.57,0.000131,2]
[346524326,1735026638450,-977.57,0.000131,2]
[346524327,1735026638460,-365.25,0.000131,2]
[346524328,1735026638469,-150.0,0.00013124,2]
[346524329,1735026638479,-28427.0,0.00013141,2]
[346524330,1735026638488,-977.57,0.00013178,2]
[346524331,1735026638498,-364.53,0.00013178,2]
[346524332,1735026638507,-150.0,0.00013216,2]
[346524333,1735026638516,-150.0,0.00013216,2]
[346524334,1735026638526,-150.0,0.00013261,2]
[346524335,1735026638535,-977.57,0.000133,2]
[346524336,1735026638544,-365.25,0.000133,2]
[346524337,1735026638554,-203.71,0.00013366,2]
[346524338,1735026638563,-203.3,0.00013373,2]
[346524339,1735026638573,-202.8,0.0001339,2]
[346524340,1735026638582,-150.0,0.00013398,2]
[346524342,1735026638591,-200.78,0.00013419,2]
[346524344,1735026638601,-150.0,0.00013443,2]
[346524346,1735026638611,-150.0,0.00013443,2]
[346524348,1735026638622,-200.76,0.00013474,2]
[346524349,1735026638631,-4250.99815699,0.00013498,2]
[346524350,1735026638643,-2142.52514301,0.00013498,2]
[346524351,1735026638653,-365.25,0.000135,2]
[346524353,1735026638663,-977.57,0.000135,2]
[346524355,1735026638672,-436.21,0.000135,2]
[346524357,1735026638683,-4287.54364945,0.000135,2]
[346524360,1735026638748,-3625.85802163,0.000135,2]
[346524361,1735026638777,-1343.13496,0.000135,2]
[346524386,1735026640493,-2263.41957,0.000135,2]
[346524387,1735026640505,-1526.265,0.000135,2]
[346524393,1735026640557,-6953.77879892,0.000135,2]
[346524395,1735026640567,-150.0,0.00013535,2]
[346524397,1735026640576,-4017.20380348,0.0001358,2]
[346524400,1735026640599,-982.79619652,0.0001358,2]
[346524402,1735026640608,-201.41,0.0001358,2]
[346524404,1735026640617,-270.48780477,0.00013594,2]
[346524406,1735026640626,-2803.4134,0.00013595,2]
[346524408,1735026640636,-1283.0481,0.00013595,2]
[346524410,1735026640645,-6149.963,0.00013595,2]
[346524412,1735026640654,-1103.5612,0.00013596,2]
[346524413,1735026640663,-187.12294158,0.00013597,2]
[346524414,1735026640673,-595.91306086,0.00013597,2]
[346524415,1735026640682,-337.99315214,0.00013597,2]
[346524416,1735026640692,-432.07039034,0.00013597,2]
[346524417,1735026641054,-163.84267047,0.00013597,2]
[346524418,1735026641064,-337.99315211,0.00013597,2]
[346524419,1735026641074,-595.91306081,0.00013597,2]
[346524420,1735026641083,-337.99315211,0.00013597,2]
[346524421,1735026641094,-595.91306081,0.00013597,2]
[346524422,1735026641103,-337.99315211,0.00013597,2]
[346524423,1735026641112,-595.91306081,0.00013597,2]
[346524424,1735026641121,-337.99315211,0.00013597,2]
[346524425,1735026641130,-595.91306081,0.00013598,2]
[346524426,1735026641140,-337.99315211,0.00013598,2]
[346524427,1735026641149,-595.91306081,0.00013598,2]
[346524428,1735026641158,-337.99315211,0.00013598,2]
[346524429,1735026641167,-595.91306081,0.00013598,2]
[346524430,1735026641177,-337.99315211,0.00013598,2]
[346524431,1735026641187,-595.91306081,0.00013598,2]
[346524432,1735026641196,-337.99315211,0.00013598,2]
[346524433,1735026641206,-595.91306081,0.00013598,2]
[346524434,1735026641216,-337.99315211,0.00013598,2]
[346524435,1735026641225,-2047.63676239,0.00013598,2]
[346524436,1735026641235,-3174.9609,0.00013598,2]
[346524437,1735026641244,-260.6253,0.00013598,2]
[346524438,1735026641253,-1000.0,0.00013598,2]
[346524439,1735026641263,-150.0,0.00013671,2]
[346524440,1735026641274,-150.0,0.00013671,2]
[346524441,1735026641284,-150.0,0.00013671,2]
[346524442,1735026641294,-237.01032605,0.00013671,2]
[346524443,1735026641303,-233.89065543,0.00013671,2]
[346524444,1735026641312,-2649.3022,0.00013673,2]
[346524445,1735026641322,-500.0,0.00013673,2]
[346524446,1735026641331,-1398.0,0.0001368,2]
[346524447,1735026641340,-47722.49190602,0.0001368,2]
[346524449,1735026643933,-3371.0,0.0001368,2]
[346524450,1735026644256,-4913.15181181,0.0001368,2]
[346524452,1735026644268,-698.384581,0.0001368,2]
[346524469,1735026646404,-904.24,0.000135,2]
[346524470,1735026646415,-203.52,0.00013597,2]
[346524471,1735026646424,-8755.72892246,0.0001368,2]
[346524472,1735026646470,-1889.31220483,0.0001368,2]
[346524473,1735026646538,-232972.34287716,0.0001368,2]
[346524474,1735026646550,-15566.53773041,0.0001368,2]
[346524475,1735026646599,-165105.5971982,0.0001368,2]
[346524476,1735026646655,-7297.18150784,0.0001368,2]
[346524477,1735027024332,170.43,0.00016658,30]
[346524478,1735027109933,157.66,0.00010137,2]
[346524480,1735027275471,353.34,0.00010899,2]
[346524481,1735027463869,30181.17299679,0.00012114,2]
[346524485,1735027734400,20000.0,0.00012,2]
[346524486,1735027815131,-448.15,0.00012682,2]
[346524487,1735027815154,-1000.0,0.00012705,2]
[346524488,1735027815177,-186.33,0.00012736,2]
[346524489,1735027815201,-250.0,0.000129,2]
[346524490,1735027815224,-300.0,0.0001296,2]
[346524491,1735027815247,-47346.3064862,0.00012961,2]
[346524492,1735027815272,-150.0,0.00012971,2]
[346524493,1735027815296,-450.0,0.00013,2]
[346524494,1735027815320,-629.537,0.0001302,2]
[346524495,1735027815346,-220.92,0.00013043,2]
[346524496,1735027815372,-250.0,0.00013043,2]
[346524497,1735027815397,-1298.28,0.00013043,2]
[346524498,1735027815421,-250.0,0.00013094,2]
[346524499,1735027815445,-353.34,0.00013162,2]
[346524500,1735027815471,-206.13,0.00013309,2]
[346524501,1735027815496,-200.64,0.00013579,2]
[346524502,1735027815522,-203.87,0.00013579,2]
[346524503,1735027815546,-201.68,0.00013579,2]
[346524504,1735027815569,-203.68,0.00013579,2]
[346524505,1735027815592,-201.94,0.00013579,2]
[346524506,1735027815614,-626.9070721,0.0001358,2]
[346524507,1735027815636,-3176.2868,0.0001358,2]
[346524508,1735027815660,-200.63,0.0001358,2]
[346524509,1735027815683,-202.07,0.0001358,2]
[346524510,1735027815710,-201.27,0.0001358,2]
[346524511,1735027815732,-626.90707211,0.00013598,2]
[346524512,1735027815755,-200.87,0.000136,2]
[346524513,1735027815776,-4563.62112249,0.000136,2]
[346524514,1735027815798,-500.0,0.00013673,2]
[346524515,1735027815818,-196221.86159018,0.0001368,2]
[346524516,1735027815839,-694122.66351761,0.0001368,2]
[346524517,1735027815860,-3000.0,0.0001368,2]
[346524518,1735027815881,-1263.0,0.00013697,2]
[346524519,1735027815904,-1000.0,0.00013697,2]
[346524520,1735027815926,-253440.19661492,0.00013697,2]
[346524521,1735027815946,-293478.64517734,0.00013697,2]
[346524522,1735027815967,-78454.77142289,0.00013697,2]
[346524526,1735027831424,-1000.0,0.0001358,2]
[346524527,1735027831434,-983.0,0.00013697,2]
[346524528,1735027831444,-489.5677821,0.00013697,2]
[346524529,1735027831585,-300.0,0.00013697,2]
[346524537,1735027837426,-202.77,0.0001358,2]
[346524538,1735027837435,-1428.23,0.00013697,2]
[346524539,1735027837476,-385.55744706,0.00013697,2]
[346524540,1735027837532,-7672.4757788,0.00013697,2]
[346524541,1735027837541,-14651.43464373,0.00013697,2]
[346524542,1735027837552,-11892.72271579,0.00013697,2]
[346524543,1735027837638,-7214.41,0.00013697,2]
[346524565,1735027839416,-2516.81878036,0.00013697,2]
[346524566,1735027839427,-2216.23312915,0.00013697,2]
[346524567,1735027840308,-250.0,0.00013408,2]
[346524568,1735027840318,-843.32183034,0.00013697,2]
[346524572,1735027842501,-7437.089528,0.00013697,2]
[346524573,1735027842713,-500.0,0.00013673,2]
[346524574,1735027842722,-448.18708705,0.00013697,2]
[346524575,1735027842845,-2122.8,0.00013697,2]
[346524576,1735027842857,-548.915419,0.00013697,2]
[346524589,1735027845797,-612.52499993,0.00013697,2]
[346524590,1735027845808,-2477.43458853,0.00013697,2]
[346524591,1735027845820,-216.9298731,0.00013697,2]
[346524592,1735027845829,-151.0,0.00013697,2]
[346524593,1735027845838,-151.0,0.00013697,2]
[346524594,1735027845848,-151.245111,0.00013697,2]
[346524595,1735027845857,-151.0,0.00013697,2]
[346524596,1735027845866,-151.0,0.00013697,2]
[346524597,1735027845875,-151.0,0.00013697,2]
[346524598,1735027845884,-287.063453,0.00013697,2]
[346524599,1735027845893,-287.063453,0.00013697,2]
[346524600,1735027845903,-287.063453,0.00013697,2]
[346524601,1735027845912,-204.14558635,0.00013697,2]
[346524605,1735027846023,-82.91786665,0.00013697,2]
[346524607,1735027846033,-151.0,0.00013697,2]
[346524608,1735027846044,-293.840147,0.00013697,2]
[346524609,1735027846053,-208.825188,0.00013697,2]
[346524610,1735027846062,-208.825188,0.00013697,2]
[346524612,1735027846071,-208.825188,0.00013697,2]
[346524613,1735027846080,-208.825188,0.00013697,2]
[346524614,1735027846089,-151.0,0.00013697,2]
[346524615,1735027846098,-198.578765,0.00013697,2]
[346524616,1735027846108,-177.400874,0.00013697,2]
[346524617,1735027846117,-177.400874,0.00013697,2]
[346524618,1735027846126,-177.400874,0.00013697,2]
[346524619,1735027846135,-177.400874,0.00013697,2]
[346524620,1735027846144,-151.0,0.00013697,2]
[346524621,1735027846153,-151.0,0.00013697,2]
[346524622,1735027846162,-151.0,0.00013697,2]
[346524623,1735027846171,-151.0,0.00013697,2]
[346524624,1735027846180,-151.0,0.00013697,2]
[346524625,1735027846189,-151.0,0.00013697,2]
[346524626,1735027846198,-251.716875,0.00013697,2]
[346524627,1735027846207,-251.716875,0.00013697,2]
[346524628,1735027846216,-251.716875,0.00013697,2]
[346524629,1735027846226,-251.716875,0.00013697,2]
[346524630,1735027846235,-151.0,0.00013697,2]
[346524631,1735027846244,-151.0,0.00013697,2]
[346524632,1735027846254,-151.0,0.00013697,2]
[346524633,1735027846263,-151.0,0.00013697,2]
[346524634,1735027846272,-313.682756,0.00013697,2]
[346524635,1735027846281,-313.682756,0.00013697,2]
[346524636,1735027846292,-163.334739,0.00013697,2]
[346524637,1735027846301,-313.682756,0.00013697,2]
[346524638,1735027846311,-313.682756,0.00013697,2]
[346524639,1735027846320,-151.0,0.00013697,2]
[346524640,1735027846329,-151.0,0.00013697,2]
[346524641,1735027846338,-500.0,0.00013697,2]
[346524642,1735027846347,-1041.380974,0.00013697,2]
[346524643,1735027846357,-1041.380974,0.00013697,2]
[346524644,1735027846365,-1041.380974,0.00013697,2]
[346524645,1735027846375,-1041.380974,0.00013697,2]
[346524646,1735027846386,-151.0,0.00013697,2]
[346524647,1735027846395,-151.0,0.00013697,2]
[346524648,1735027846404,-151.0,0.00013697,2]
[346524649,1735027846413,-151.0,0.00013697,2]
[346524650,1735027846422,-151.0,0.00013697,2]
[346524651,1735027846431,-151.0,0.00013697,2]
[346524652,1735027846440,-151.0,0.00013697,2]
[346524653,1735027846449,-151.0,0.00013697,2]
[346524654,1735027846459,-151.0,0.00013697,2]
[346524655,1735027846469,-151.0,0.00013697,2]
[346524656,1735027846478,-151.0,0.00013697,2]
[346524657,1735027846488,-151.0,0.00013697,2]
[346524658,1735027846497,-156.310662,0.00013697,2]
[346524659,1735027846506,-217.706213,0.00013697,2]
[346524660,1735027846515,-217.706213,0.00013697,2]
[346524661,1735027846524,-217.706213,0.00013697,2]
[346524662,1735027846534,-217.706213,0.00013697,2]
[346524663,1735027846545,-165.851624,0.00013697,2]
[346524664,1735027846554,-151.0,0.00013697,2]
[346524665,1735027846563,-151.0,0.00013697,2]
[346524666,1735027846572,-799.615946,0.00013697,2]
[346524667,1735027846581,-799.615946,0.00013697,2]
[346524668,1735027846591,-799.615946,0.00013697,2]
[346524669,1735027846600,-799.615946,0.00013697,2]
[346524670,1735027846609,-151.0,0.00013697,2]
[346524671,1735027846618,-151.0,0.00013697,2]
[346524672,1735027846628,-151.0,0.00013697,2]
[346524673,1735027846637,-151.0,0.00013697,2]
[346524674,1735027846646,-151.0,0.00013697,2]
[346524675,1735027846655,-155.633249,0.00013697,2]
[346524676,1735027846665,-151.0,0.00013697,2]
[346524677,1735027846674,-151.0,0.00013697,2]
[346524678,1735027846683,-279.063351,0.00013697,2]
[346524679,1735027846692,-151.0,0.00013697,2]
[346524680,1735027846701,-151.0,0.00013697,2]
[346524681,1735027846710,-214.26816,0.00013697,2]
[346524682,1735027846719,-153.968596,0.00013697,2]
[346524683,1735027846728,-151.650033,0.00013697,2]
[346524684,1735027846737,-409.935475,0.00013697,2]
[346524685,1735027846746,-409.935475,0.00013697,2]
[346524686,1735027846756,-151.0,0.00013697,2]
[346524687,1735027846764,-409.935475,0.00013697,2]
[346524688,1735027846773,-409.935475,0.00013697,2]
[346524689,1735027846782,-151.0,0.00013697,2]
[346524690,1735027846793,-151.0,0.00013697,2]
[346524691,1735027846802,-234.526582,0.00013697,2]
[346524692,1735027846812,-152.912672,0.00013697,2]
[346524693,1735027846821,-151.0,0.00013697,2]
[346524694,1735027846830,-151.0,0.00013697,2]
[346524695,1735027846839,-151.0,0.00013697,2]
[346524696,1735027846848,-151.0,0.00013697,2]
[346524697,1735027846858,-151.0,0.00013697,2]
[346524698,1735027846867,-151.0,0.00013697,2]
[346524699,1735027846876,-152.403135,0.00013697,2]
[346524700,1735027846885,-151.0,0.00013697,2]
[346524701,1735027846894,-151.0,0.00013697,2]
[346524702,1735027846903,-263.628214,0.00013697,2]
[346524703,1735027846913,-263.628214,0.00013697,2]
[346524704,1735027846922,-151.744237,0.00013697,2]
[346524705,1735027846931,-263.628214,0.00013697,2]
[346524706,1735027846940,-263.628214,0.00013697,2]
[346524707,1735027846949,-151.0,0.00013697,2]
[346524708,1735027846958,-151.0,0.00013697,2]
[346524709,1735027846967,-151.0,0.00013697,2]
[346524710,1735027846976,-151.0,0.00013697,2]
[346524711,1735027846985,-155.453415,0.00013697,2]
[346524712,1735027846994,-153.729062,0.00013697,2]
[346524713,1735027847003,-151.0,0.00013697,2]
[346524714,1735027847012,-151.0,0.00013697,2]
[346524715,1735027847020,-151.0,0.00013697,2]
[346524716,1735027847030,-151.0,0.00013697,2]
[346524717,1735027847039,-152.815321,0.00013697,2]
[346524718,1735027847048,-883.0,0.00013698,2]
[346524719,1735027847058,-1557886.93219751,0.00013698,2]
[346524720,1735027847071,-355.64993399,0.00013698,2]
[346524721,1735027847082,-609.34668482,0.00013698,2]
[346524722,1735027847094,-1613.94584762,0.00013698,2]
[346524723,1735027847106,-7829.82181994,0.00013698,2]
[346524724,1735027918870,11212434.10401929,0.0002,120]
[346524725,1735027918898,9000000.0,0.0002,120]
[346524728,1735027963960,640307.82700321,0.00011,2]
[346524729,1735027963984,1480000.0,0.00011,2]
[346524730,1735027964011,1843605.5786976,0.00011,2]
[346524731,1735027964038,1053784.18617379,0.00011,2]
[346524732,1735027964067,200000.0,0.00011,2]
[346524733,1735027964096,329000.0,0.00011,2]
[346524734,1735027964120,2000000.0,0.00011,2]
[346524735,1735027964144,2000000.0,0.00011,2]
[346524736,1735027964170,11169.0,0.00011,2]
[346524737,1735027964201,10000.0,0.00011,2]
[346524738,1735027964229,30000.0,0.00011,2]
[346524739,1735028013446,-300.0,0.00010999,2]
[346524740,1735028013476,-209700.0,0.00011,2]
[346524743,1735028079179,165.96,0.00010137,2]
[346524746,1735028403034,150.0,0.00010137,2]
[346524747,1735028403212,151.4159304,0.00010137,2]
[346524748,1735028413223,8025.47422,0.00019,30]
[346524749,1735028494105,-378.88,0.00010352,2]
[346524750,1735028494128,-1315.673,0.0001078,2]
[346524751,1735028494151,-1016.5541348,0.00010873,2]
[346524752,1735028494173,-500.0,0.00010973,2]
[346524753,1735028494195,-300.0,0.00010998,2]
[346524754,1735028494216,-180.71314853,0.00010999,2]
[346524755,1735028494239,-500.0,0.00010999,2]
[346524756,1735028494262,-500.0,0.00010999,2]
[346524757,1735028494284,-490.47359672,0.00010999,2]
[346524758,1735028494310,-246817.70611995,0.00011,2]
[346524759,1735028706750,181.0972434,9.888e-05,2]
[346524760,1735028708686,150.00000001,9.888e-05,2]
[346524761,1735028715500,242.62786903,9.888e-05,2]
[346524762,1735028719902,9026.41953616,9e-05,2]